bitfinex/quotes_SOLUSD_20241031
["timestamp","ask_amount","ask_price","bid_price","bid_amount"]
[1730399122294,0.2,169.76,169.75,6.01649]
[1730399122592,0.2,169.76,169.75,19.95326885]
[1730399123185,0.2,169.76,169.75,6.01649]
[1730399123768,0.2,169.76,169.75,0.12549]
[1730399123986,0.2,169.76,169.74,19.82777885]
[1730399123987,0.2,169.76,169.73,14.7292]
[1730399124184,20.02767885,169.76,169.7,34.56087885]
[1730399124392,13.93677885,169.75,169.71,0.12549]
[1730399124888,20.02767885,169.76,169.71,0.12549]
[1730399125193,20.02767885,169.76,169.71,6.01769]
[1730399125780,14.13677885,169.76,169.71,0.12549]
[1730399125990,13.93677885,169.75,169.71,0.12549]
[1730399126689,20.02767885,169.76,169.71,0.12549]
[1730399126995,13.93677885,169.75,169.71,0.12549]
[1730399127189,20.02767885,169.76,169.71,0.12549]
[1730399128291,13.93677885,169.75,169.7,14.7315]
[1730399128494,13.93677885,169.75,169.7,0.12549]
[1730399129108,13.93677885,169.73,169.68,13.93677885]
[1730399129300,13.93677885,169.7,169.65,13.93677885]
[1730399129606,19.83017885,169.69,169.63,50.87977885]
[1730399129811,19.83017885,169.69,169.64,0.12549]
[1730399130384,13.93677885,169.67,169.62,19.83227885]
[1730399130585,13.93677885,169.68,169.62,19.83227885]
[1730399130786,19.83017885,169.69,169.63,13.93677885]
[1730399130996,13.93677885,169.7,169.64,13.93677885]
[1730399131186,20.0,169.69,169.65,13.93677885]
[1730399131382,33.93677885,169.69,169.63,13.93677885]
[1730399131577,13.93677885,169.68,169.63,19.83177885]
[1730399131805,13.93677885,169.68,169.63,0.12549]
[1730399132010,13.93677885,169.68,169.63,14.06226885]
[1730399132308,13.93677885,169.67,169.63,0.12549]
[1730399132508,13.93677885,169.68,169.62,28.67557885]
[1730399132809,19.83037885,169.68,169.62,34.57097885]
[1730399133287,13.93677885,169.67,169.62,20.6342]
[1730399133603,13.93677885,169.66,169.6,19.83267885]
[1730399133796,37.71366285,169.67,169.61,14.06226885]
[1730399134803,43.60746285,169.67,169.62,5.8955]
[1730399135410,43.60746285,169.67,169.62,19.83227885]
[1730399135411,29.670684,169.67,169.62,19.83227885]
[1730399135585,43.60746285,169.67,169.62,19.83227885]
[1730399136003,43.60716285,169.68,169.62,19.83227885]
[1730399136306,13.93677885,169.67,169.62,5.8955]
[1730399137410,43.60716285,169.68,169.62,19.83227885]
[1730399139413,43.60716285,169.68,169.62,34.57107885]
[1730399139912,20.0,169.69,169.64,13.93677885]
[1730399140410,37.71366285,169.72,169.66,13.93677885]
[1730399140717,13.93677885,169.72,169.66,13.93677885]
[1730399141100,5.8913,169.74,169.63,0.12549]
[1730399141308,13.93677885,169.67,169.62,34.57107885]
[1730399141506,13.93677885,169.66,169.62,14.7388]
[1730399141703,13.93677885,169.66,169.62,20.6343]
[1730399142093,0.1,169.71,169.62,20.6343]
[1730399142094,13.93677885,169.67,169.62,20.6343]
[1730399142587,13.93677885,169.67,169.62,34.57107885]
[1730399142813,23.776884,169.67,169.63,13.93677885]
[1730399143694,23.776884,169.67,169.62,34.57107885]
[1730399143885,23.776884,169.67,169.63,13.93677885]
[1730399144592,13.93677885,169.7,169.65,13.93677885]
[1730399144822,13.93677885,169.71,169.66,13.93677885]
[1730399145615,13.93677885,169.7,169.64,28.67377885]
[1730399146419,13.93677885,169.7,169.64,34.56857885]
[1730399148121,20.0,169.71,169.67,13.93677885]
[1730399148414,13.93677885,169.74,169.68,13.93677885]
[1730399149617,20.0,169.74,169.7,13.93677885]
[1730399149792,0.2,169.76,169.71,13.93677885]
[1730399149993,0.2,169.76,169.72,13.93677885]
[1730399150211,0.2,169.76,169.71,13.93677885]
[1730399150714,0.2,169.76,169.72,13.93677885]
[1730399150918,0.2,169.76,169.73,13.93677885]
[1730399151694,19.0498087,169.78,169.73,13.93677885]
[1730399151919,13.93677885,169.76,169.7,13.93677885]
[1730399152102,13.93677885,169.75,169.7,13.93677885]
[1730399152301,13.93677885,169.75,169.68,14.7334]
[1730399152302,13.93677885,169.74,169.68,34.56337885]
[1730399152824,13.93677885,169.74,169.68,34.26337885]
[1730399153196,13.93677885,169.73,169.68,20.3266]
[1730399153402,5.8918,169.73,169.68,34.26337885]
[1730399153702,13.93677885,169.74,169.68,34.26337885]
[1730399153903,19.82807885,169.74,169.68,34.26337885]
[1730399154717,13.93677885,169.73,169.68,34.26337885]
[1730399155805,13.93677885,169.73,169.68,20.3266]
[1730399156201,19.82867885,169.73,169.68,20.3268]
[1730399156403,23.876884,169.77,169.68,20.3268]
[1730399156404,20.0,169.74,169.71,13.93677885]
[1730399156914,20.0,169.75,169.71,13.93677885]
[1730399157121,25.8911,169.75,169.71,13.93677885]
[1730399157294,20.0,169.76,169.72,5.892]
[1730399157497,20.0,169.76,169.71,19.82907885]
[1730399158118,20.0,169.76,169.71,34.56007885]
[1730399158321,33.93677885,169.76,169.71,34.56007885]
[1730399158820,33.93677885,169.76,169.71,20.6233]
[1730399159329,39.82747885,169.76,169.71,34.56007885]
[1730399159517,20.0,169.76,169.72,0.12549]
[1730399159698,20.0,169.76,169.72,14.06226885]
[1730399160801,20.0,169.76,169.72,19.95416885]
[1730399161002,20.0,169.76,169.72,6.01739]
[1730399161403,39.82767885,169.76,169.7,19.82927885]
[1730399161603,25.8909,169.76,169.71,14.06226885]
[1730399161909,20.0,169.77,169.73,13.93677885]
[1730399162224,19.82567885,169.81,169.75,13.93677885]
[1730399162423,5.8889,169.81,169.76,13.93677885]
[1730399162601,19.82567885,169.81,169.75,14.06226885]
[1730399162802,13.93677885,169.8,169.75,14.06226885]
[1730399163110,5.8893,169.8,169.75,14.06226885]
[1730399163319,13.93677885,169.82,169.76,13.93677885]
[1730399163513,33.93677885,169.81,169.75,19.95316885]
[1730399163929,20.0,169.81,169.76,13.93677885]
[1730399164316,20.0,169.81,169.75,20.74389]
[1730399164317,13.93677885,169.81,169.75,34.68066885]
[1730399164506,13.93677885,169.8,169.75,20.74389]
[1730399164709,13.93677885,169.76,169.72,14.7299]
[1730399165138,20.1,169.82,169.72,28.66667885]
[1730399165139,13.93677885,169.77,169.72,28.66667885]
[1730399165426,19.82717885,169.77,169.73,0.12549]
[1730399165632,13.93677885,169.78,169.73,0.12549]
[1730399165922,19.82677885,169.78,169.73,0.12549]
[1730399166098,13.93677885,169.77,169.73,0.12549]
[1730399166509,19.82677885,169.78,169.73,0.12549]
[1730399166912,13.93677885,169.77,169.73,0.12549]
[1730399167423,13.93677885,169.78,169.73,0.12549]
[1730399168024,19.82687885,169.78,169.73,0.12549]
[1730399168843,13.93677885,169.77,169.73,0.12549]
[1730399169220,19.82707885,169.77,169.73,0.12549]
[1730399171041,13.93677885,169.78,169.73,0.12549]
[1730399172818,19.82687885,169.78,169.73,0.12549]
[1730399173528,13.93677885,169.77,169.73,0.12549]
[1730399173729,13.93677885,169.74,169.69,15.9068]
[1730399173923,13.93677885,169.72,169.69,15.9068]
[1730399174249,13.93677885,169.73,169.69,15.9068]
[1730399174419,13.93677885,169.74,169.69,15.9068]
[1730399174620,13.93677885,169.74,169.69,21.7998]
[1730399175020,19.82837885,169.74,169.69,21.7998]
[1730399175547,19.82837885,169.74,169.69,15.9068]
[1730399177223,13.93677885,169.73,169.69,15.9068]
[1730399178351,13.93677885,169.71,169.66,28.67187885]
[1730399178849,13.93677885,169.72,169.67,0.12549]
[1730399179430,19.82867885,169.73,169.67,14.06226885]
[1730399179946,5.8919,169.73,169.69,0.12549]
[1730399180345,19.82867885,169.73,169.68,13.93677885]
[1730399180932,13.93677885,169.7,169.65,29.02447885]
[1730399181154,13.93677885,169.68,169.65,15.0877]
[1730399181351,13.93677885,169.67,169.62,19.83217885]
[1730399181527,13.93677885,169.67,169.63,0.12549]
[1730399181723,13.93677885,169.69,169.63,13.93677885]
[1730399182035,43.60706285,169.68,169.63,13.93677885]
[1730399182239,43.60706285,169.68,169.62,14.06226885]
[1730399182742,13.93677885,169.74,169.67,13.93677885]
[1730399183123,13.93677885,169.73,169.67,13.93677885]
[1730399183735,13.93677885,169.72,169.66,13.93677885]
[1730399183932,5.8924,169.71,169.67,13.93677885]
[1730399184459,5.8924,169.71,169.66,13.93677885]
[1730399185036,5.8924,169.71,169.63,13.93677885]
[1730399185037,13.93677885,169.69,169.63,13.93677885]
[1730399185254,23.776884,169.67,169.61,50.53927885]
[1730399185436,37.71366285,169.67,169.61,50.53927885]
[1730399187125,43.60756285,169.67,169.61,50.53927885]
[1730399187954,13.93677885,169.65,169.61,15.9673]
[1730399188255,20.0,169.66,169.62,13.93677885]
[1730399188454,20.0,169.66,169.63,13.93677885]
[1730399188757,20.0,169.68,169.63,34.56977885]
[1730399190132,20.0,169.68,169.64,13.93677885]
[1730399190326,33.93677885,169.68,169.63,20.633]
[1730399190532,39.83027885,169.68,169.63,20.633]
[1730399191541,39.83027885,169.68,169.63,34.56977885]
[1730399192451,33.93677885,169.68,169.63,34.56977885]
[1730399194239,33.93677885,169.68,169.63,20.633]
[1730399194442,13.93677885,169.67,169.63,20.633]
[1730399194630,13.93677885,169.67,169.63,14.7379]
[1730399196849,39.83027885,169.68,169.63,14.7379]
[1730399197034,23.776884,169.67,169.63,14.7379]
[1730399197435,37.71366285,169.67,169.63,14.7379]
[1730399197744,13.93677885,169.66,169.61,21.8631]
[1730399198840,37.71366285,169.67,169.62,13.93677885]
[1730399199058,37.71366285,169.67,169.61,50.53947885]
[1730399199365,43.60746285,169.67,169.61,50.53947885]
[1730399200350,23.776884,169.67,169.63,13.93677885]
[1730399200564,20.0,169.68,169.64,13.93677885]
[1730399200874,13.93677885,169.73,169.67,13.93677885]
[1730399201365,5.8914,169.74,169.68,13.93677885]
[1730399201366,13.93677885,169.74,169.68,13.93677885]
[1730399201543,13.93677885,169.74,169.69,13.93677885]
[1730399202043,13.93677885,169.75,169.69,13.93677885]
[1730399202244,13.93677885,169.77,169.71,13.93677885]
[1730399202440,8.89352296,169.78,169.72,8.89352296]
[1730399202676,8.89352296,169.77,169.71,8.89352296]
[1730399202843,14.78382296,169.77,169.71,14.78572296]
[1730399203458,8.89352296,169.76,169.71,14.78572296]
[1730399203640,20.0,169.75,169.71,14.78572296]
[1730399203845,20.0,169.76,169.71,14.78572296]
[1730399204133,20.0,169.76,169.72,8.89352296]
[1730399204339,20.0,169.76,169.71,8.89352296]
[1730399204542,20.0,169.76,169.71,13.89806243]
[1730399204838,13.89806243,169.77,169.72,13.89806243]
[1730399205040,13.89806243,169.76,169.71,13.89806243]
[1730399205270,13.89806243,169.78,169.72,13.89806243]
[1730399205658,13.89806243,169.78,169.73,13.89806243]
[1730399205973,13.89806243,169.78,169.72,13.89806243]
[1730399206153,20.0,169.77,169.73,19.78936243]
[1730399206559,20.0,169.78,169.73,19.78936243]
[1730399206770,19.78696243,169.81,169.75,13.89806243]
[1730399207060,13.89806243,169.8,169.75,13.89806243]
[1730399207691,13.89806243,169.82,169.77,13.89806243]
[1730399208178,20.0,169.81,169.77,19.78836243]
[1730399208967,20.0,169.8,169.76,6.01609]
[1730399209756,20.0,169.81,169.76,19.91415243]
[1730399210151,20.0,169.81,169.77,19.78806243]
[1730399210349,33.89806243,169.83,169.77,19.78806243]
[1730399210869,39.78636243,169.83,169.77,19.78806243]
[1730399211246,13.89806243,169.82,169.77,5.89]
[1730399213548,13.89806243,169.8,169.76,0.12549]
[1730399213749,13.89806243,169.81,169.76,0.12549]
[1730399213942,13.89806243,169.81,169.76,14.02355243]
[1730399214450,19.78666243,169.82,169.76,14.02355243]
[1730399214648,13.89806243,169.81,169.76,19.91415243]
[1730399215161,13.89806243,169.81,169.76,6.01609]
[1730399216359,13.89806243,169.82,169.76,34.64075243]
[1730399216558,13.89806243,169.81,169.76,34.64075243]
[1730399216889,13.89806243,169.82,169.77,13.89806243]
[1730399217164,20.0,169.82,169.78,0.12549]
[1730399218147,20.0,169.82,169.79,5.8896]
[1730399218354,20.0,169.82,169.78,0.12549]
[1730399218767,20.0,169.82,169.78,6.01539]
[1730399218942,13.89806243,169.83,169.78,19.91345243]
[1730399219943,13.89806243,169.83,169.78,6.01539]
[1730399220468,20.0,169.83,169.78,34.63835243]
[1730399220871,13.89806243,169.87,169.82,0.12549]
[1730399221050,13.89806243,169.88,169.82,14.02355243]
[1730399221249,5.8864,169.89,169.82,14.02355243]
[1730399221250,13.89806243,169.87,169.82,14.02355243]
[1730399221563,13.89806243,169.87,169.82,29.05815243]
[1730399222277,13.89806243,169.85,169.82,15.16009]
[1730399222773,13.89806243,169.86,169.82,21.04859]
[1730399222987,5.8858,169.9,169.82,15.16009]
[1730399222988,13.89806243,169.85,169.82,15.16009]
[1730399223158,13.89806243,169.86,169.82,15.16009]
[1730399223477,13.89806243,169.85,169.82,15.16009]
[1730399223982,13.89806243,169.83,169.78,37.3539]
[1730399224190,13.89806243,169.81,169.78,30.9349]
[1730399224478,13.89806243,169.8,169.75,20.6184]
[1730399224680,13.89806243,169.79,169.76,0.12549]
[1730399225374,13.89806243,169.8,169.76,0.12549]
[1730399225754,13.89806243,169.8,169.75,34.51646243]
[1730399226200,13.89806243,169.8,169.76,0.12549]
[1730399226484,8.89025095,169.8,169.76,0.12549]
[1730399227394,8.89025095,169.78,169.74,22.5908]
[1730399228205,8.89025095,169.78,169.74,16.2102]
[1730399228383,8.89025095,169.77,169.74,16.2102]
[1730399228879,8.89025095,169.77,169.74,0.12549]
[1730399229073,8.89025095,169.76,169.72,5.892]
[1730399229881,8.89025095,169.76,169.72,0.12549]
[1730399230097,8.89025095,169.75,169.72,0.12549]
[1730399230384,8.89025095,169.77,169.72,0.12549]
[1730399230695,13.89713686,169.77,169.72,0.12549]
[1730399231485,13.89713686,169.76,169.72,0.12549]
[1730399233592,13.89713686,169.76,169.72,6.01739]
[1730399236012,13.89713686,169.77,169.72,20.74749]
[1730399237082,13.89713686,169.77,169.72,34.64462686]
[1730399238496,13.89713686,169.77,169.72,14.85559]
[1730399238707,13.89713686,169.76,169.72,14.7301]
[1730399239002,13.89713686,169.74,169.7,28.2129]
[1730399239376,13.89713686,169.78,169.73,0.12549]
[1730399239610,20.0,169.77,169.73,0.12549]
[1730399239807,20.0,169.77,169.73,14.02262686]
[1730399240185,13.89713686,169.78,169.73,14.02262686]
[1730399240597,13.89713686,169.78,169.74,5.8913]
[1730399241207,13.89713686,169.78,169.73,14.85469]
[1730399241208,13.89713686,169.76,169.73,14.85469]
[1730399241374,13.89713686,169.75,169.7,36.21733686]
[1730399241578,13.89713686,169.75,169.71,5.8923]
[1730399242212,13.89713686,169.75,169.72,0.12549]
[1730399242587,13.89713686,169.76,169.72,6.01739]
[1730399243100,13.89713686,169.75,169.72,6.01739]
[1730399243980,13.89713686,169.76,169.72,6.01739]
[1730399244808,33.89713686,169.77,169.72,6.01739]
[1730399246018,13.89713686,169.79,169.74,13.89713686]
[1730399246385,13.89713686,169.81,169.76,13.89713686]
[1730399246781,13.89713686,169.8,169.75,14.02262686]
[1730399247095,5.8878,169.84,169.75,0.12549]
[1730399247096,13.89713686,169.78,169.75,0.12549]
[1730399247299,13.89713686,169.79,169.75,0.12549]
[1730399247501,13.89713686,169.8,169.75,6.01619]
[1730399247722,13.89713686,169.84,169.78,14.02262686]
[1730399248300,13.89713686,169.83,169.78,14.02262686]
[1730399248584,13.89713686,169.82,169.78,0.25098]
[1730399249187,13.89713686,169.82,169.78,0.12549]
[1730399249601,13.89713686,169.83,169.78,0.12549]
[1730399249800,13.89713686,169.83,169.79,5.8896]
[1730399250213,13.89713686,169.84,169.79,20.6136]
[1730399250517,8.88710426,169.83,169.79,20.6136]
[1730399254290,20.0,169.84,169.81,0.12549]
[1730399254994,8.88710426,169.84,169.81,0.12549]
[1730399255618,8.88710426,169.84,169.81,6.01439]
[1730399256820,8.88710426,169.83,169.81,6.01439]
[1730399257517,8.88710426,169.84,169.81,6.01439]
[1730399258105,8.88710426,169.87,169.81,29.62379426]
[1730399258310,8.88710426,169.88,169.83,0.12549]
[1730399258801,8.88710426,169.85,169.79,8.88710426]
[1730399259003,1.86788041,169.84,169.74,14.7275]
[1730399259219,1.86788041,169.84,169.72,15.0714]
[1730399259220,8.88710426,169.76,169.72,15.0714]
[1730399259410,8.88710426,169.77,169.72,20.9633]
[1730399259719,8.88710426,169.76,169.73,0.12549]
[1730399260239,8.88710426,169.78,169.73,6.01709]
[1730399260419,8.88710426,169.8,169.75,0.12549]
[1730399260591,28.88710426,169.81,169.75,8.88710426]
[1730399260793,8.88710426,169.79,169.74,9.01259426]
[1730399260994,8.88710426,169.79,169.74,0.12549]
[1730399261616,8.88710426,169.79,169.75,5.891]
[1730399263128,8.88710426,169.79,169.75,20.6185]
[1730399264907,8.88710426,169.78,169.75,20.6185]
[1730399265232,8.88710426,169.8,169.76,20.74269]
[1730399265427,8.88710426,169.79,169.76,20.74269]
[1730399266498,20.0,169.81,169.76,20.74269]
[1730399266499,8.88710426,169.78,169.76,20.74269]
[1730399266703,8.88710426,169.77,169.73,20.6209]
[1730399266925,8.88710426,169.76,169.73,20.6209]
[1730399267238,8.88710426,169.74,169.69,14.7321]
[1730399267407,8.88710426,169.72,169.69,20.6251]
[1730399267602,8.88710426,169.72,169.7,0.12549]
[1730399267807,8.88710426,169.73,169.7,0.12549]
[1730399268209,8.88710426,169.72,169.7,0.12549]
[1730399268425,8.88710426,169.72,169.69,14.7321]
[1730399268628,8.88710426,169.72,169.66,15.46700426]
[1730399268629,8.88710426,169.7,169.66,6.5799]
[1730399268809,8.88710426,169.68,169.66,5.894]
[1730399269002,8.88710426,169.69,169.66,5.894]
[1730399269325,8.88710426,169.69,169.66,20.6293]
[1730399269525,8.88710426,169.67,169.64,15.9036]
[1730399269706,8.88710426,169.66,169.64,15.9036]
[1730399269907,8.88710426,169.66,169.64,21.7982]
[1730399270135,8.88710426,169.66,169.64,15.9036]
[1730399270337,8.88710426,169.65,169.59,54.27190426]
[1730399270645,13.91565394,169.65,169.6,20.6367]
[1730399271345,13.91565394,169.64,169.6,20.6367]
[1730399271551,13.91565394,169.62,169.59,21.8001]
[1730399271753,13.91565394,169.61,169.59,21.8001]
[1730399272248,13.91565394,169.64,169.6,0.12549]
[1730399272545,13.91565394,169.63,169.61,20.6354]
[1730399273148,13.91565394,169.65,169.61,20.6354]
[1730399273357,13.91565394,169.66,169.62,0.12549]
[1730399273538,13.91565394,169.64,169.62,0.12549]
[1730399274433,13.91565394,169.66,169.63,14.7379]
[1730399274627,13.91565394,169.65,169.63,14.7379]
[1730399275748,13.91565394,169.64,169.63,14.7379]
[1730399275945,13.91565394,169.64,169.61,6.02129]
[1730399276117,13.91565394,169.63,169.61,6.02129]
[1730399276448,13.91565394,169.63,169.59,30.6442]
[1730399276449,13.91565394,169.62,169.6,5.8961]
[1730399276621,13.91565394,169.61,169.59,36.5407]
[1730399277318,13.91565394,169.63,169.59,36.5407]
[1730399277727,13.91565394,169.64,169.59,36.5407]
[1730399278128,13.91565394,169.63,169.59,36.5407]
[1730399278441,13.91565394,169.62,169.59,36.5407]
[1730399279033,13.91565394,169.61,169.59,36.5407]
[1730399279239,13.91565394,169.62,169.59,36.5407]
[1730399279431,13.91565394,169.63,169.59,36.5407]
[1730399279640,13.91565394,169.6,169.57,5.8971]
[1730399280552,13.91565394,169.61,169.57,5.8971]
[1730399280749,13.91565394,169.62,169.58,0.12549]
[1730399281062,13.91565394,169.63,169.58,14.04114394]
[1730399281353,23.776884,169.67,169.58,0.12549]
[1730399281354,13.91565394,169.62,169.58,0.12549]
[1730399281523,13.91565394,169.63,169.58,0.12549]
[1730399281924,20.05640116,169.67,169.62,0.12549]
[1730399282157,13.91565394,169.66,169.62,0.12549]
[1730399282658,13.91565394,169.66,169.61,14.16663394]
[1730399282954,13.91565394,169.67,169.61,14.16663394]
[1730399283124,20.0,169.66,169.6,13.91565394]
[1730399283324,13.91565394,169.62,169.59,20.6379]
[1730399283555,13.91565394,169.64,169.59,20.6379]
[1730399283731,13.91565394,169.64,169.6,0.12549]
[1730399283936,13.91565394,169.63,169.61,5.8958]
[1730399284432,13.91565394,169.64,169.61,20.6354]
[1730399285753,13.91565394,169.65,169.61,20.6354]
[1730399285955,13.91565394,169.64,169.61,20.6354]
[1730399286153,13.91565394,169.67,169.62,0.12549]
[1730399286342,13.91565394,169.68,169.62,14.04114394]
[1730399286541,20.0,169.67,169.62,14.04114394]
[1730399286762,13.91565394,169.69,169.64,0.12549]
[1730399286943,13.91565394,169.68,169.64,0.12549]
[1730399287445,13.91565394,169.7,169.65,14.04114394]
[1730399287643,13.91565394,169.71,169.66,13.91565394]
[1730399287955,13.91565394,169.71,169.67,5.8937]
[1730399288142,13.91565394,169.72,169.68,0.12549]
[1730399288342,13.91565394,169.73,169.68,14.04114394]
[1730399288762,13.91565394,169.75,169.7,14.04114394]
[1730399288943,13.91565394,169.76,169.7,14.04114394]
[1730399289348,13.91565394,169.75,169.7,14.04114394]
[1730399289655,13.91565394,169.76,169.7,14.04114394]
[1730399289849,13.91565394,169.76,169.72,0.12549]
[1730399290057,10.848,169.81,169.69,5.8927]
[1730399290058,13.91565394,169.73,169.69,5.8927]
[1730399290239,13.91565394,169.7,169.67,20.6278]
[1730399290443,13.91565394,169.72,169.67,20.6278]
[1730399290752,13.91565394,169.71,169.67,20.6278]
[1730399290972,13.91565394,169.71,169.67,20.4278]
[1730399291141,13.91565394,169.7,169.67,20.4278]
[1730399291842,13.91565394,169.7,169.67,14.5341]
[1730399292044,13.91565394,169.69,169.65,5.8944]
[1730399292248,13.91565394,169.67,169.64,29.8656]
[1730399292448,13.91565394,169.67,169.64,35.7604]
[1730399293168,13.91565394,169.65,169.6,29.8686]
[1730399293353,13.91565394,169.66,169.61,20.6354]
[1730399294567,0.2,169.73,169.61,20.6354]
[1730399294568,13.91565394,169.65,169.61,20.6354]
[1730399295843,13.91565394,169.66,169.61,20.6354]
[1730399296045,13.91565394,169.67,169.61,34.55105394]
[1730399296758,13.91565394,169.66,169.61,20.6354]
[1730399298058,13.91565394,169.66,169.55,0.1]
[1730399298059,13.91565394,169.62,169.57,20.6399]
[1730399298259,13.91565394,169.6,169.57,20.6399]
[1730399298568,13.91565394,169.61,169.57,20.6399]
[1730399298770,13.91565394,169.6,169.57,20.6399]
[1730399299070,13.91565394,169.61,169.57,14.7428]
[1730399299270,5.8949,169.64,169.57,14.7428]
[1730399299488,13.91565394,169.62,169.57,14.7428]
[1730399300054,13.91565394,169.63,169.57,28.65845394]
[1730399300278,13.91565394,169.61,169.57,14.7428]
[1730399300452,13.91565394,169.62,169.57,14.7428]
[1730399301574,13.91565394,169.62,169.57,20.64]
[1730399304188,17.04242129,169.66,169.57,20.64]
[1730399304189,13.91565394,169.6,169.57,20.64]
[1730399304489,13.91565394,169.59,169.57,14.7428]
[1730399304987,13.91565394,169.6,169.57,20.64]
[1730399306586,13.91565394,169.6,169.57,14.7428]
[1730399306985,13.91565394,169.6,169.49,0.2]
[1730399306986,13.91565394,169.58,169.51,20.6476]
[1730399307162,13.91565394,169.54,169.51,20.6476]
[1730399307977,13.91565394,169.56,169.51,14.7483]
[1730399308291,13.91565394,169.52,169.47,37.1729]
[1730399308662,13.91565394,169.54,169.48,13.91565394]
[1730399309122,13.91565394,169.55,169.49,0.12549]
[1730399309827,13.91565394,169.55,169.5,20.6489]
[1730399310019,20.0,169.56,169.5,34.56455394]
[1730399310325,13.91565394,169.57,169.51,13.91565394]
[1730399310619,13.91565394,169.57,169.5,34.56455394]
[1730399310927,13.91565394,169.56,169.5,34.56455394]
[1730399311098,13.91565394,169.57,169.51,13.91565394]
[1730399312000,13.91565394,169.56,169.52,14.7475]
[1730399313751,13.91565394,169.57,169.52,14.7475]
[1730399314930,13.91565394,169.57,169.52,20.6465]
[1730399315252,13.91565394,169.56,169.52,20.6465]
[1730399315931,13.91565394,169.56,169.52,14.7475]
[1730399316320,20.0,169.57,169.52,28.66315394]
[1730399316519,13.91565394,169.58,169.52,28.66315394]
[1730399318123,13.91565394,169.58,169.52,34.56215394]
[1730399318521,13.91565394,169.6,169.54,13.91565394]
[1730399318846,13.91565394,169.59,169.53,14.04114394]
[1730399319429,13.91565394,169.6,169.54,13.91565394]
[1730399319656,6.14515655,169.61,169.57,0.12549]
[1730399319957,13.91565394,169.62,169.57,0.12549]
[1730399320250,13.91565394,169.62,169.58,20.6392]
[1730399320545,13.91565394,169.63,169.58,20.6392]
[1730399320850,13.91565394,169.61,169.58,20.6392]
[1730399321052,13.91565394,169.6,169.58,14.7423]
[1730399321252,13.91565394,169.59,169.58,14.7423]
[1730399322442,13.91565394,169.59,169.55,20.76829]
[1730399322754,13.91565394,169.58,169.55,20.6428]
[1730399324552,13.91565394,169.58,169.55,14.7449]
[1730399324757,13.91565394,169.59,169.55,20.6428]
[1730399325053,13.91565394,169.63,169.58,0.12549]
[1730399325350,13.91565394,169.64,169.58,13.91565394]
[1730399325553,13.91565394,169.63,169.57,13.91565394]
[1730399325737,13.91565394,169.63,169.58,0.12549]
[1730399325943,13.91565394,169.64,169.58,14.04114394]
[1730399326638,13.91565394,169.64,169.59,20.6379]
[1730399326948,13.91565394,169.65,169.59,34.55355394]
[1730399327458,13.91565394,169.64,169.59,34.55355394]
[1730399329239,13.91565394,169.63,169.59,20.6379]
[1730399329671,13.91565394,169.64,169.59,20.6379]
[1730399330545,13.91565394,169.63,169.58,0.12549]
[1730399331161,13.91565394,169.61,169.56,13.91565394]
[1730399331576,5.8937,169.67,169.55,20.6428]
[1730399331577,13.91565394,169.59,169.55,20.6428]
[1730399335747,13.91565394,169.61,169.56,13.91565394]
[1730399336256,5.8948,169.64,169.56,13.91565394]
[1730399336257,13.91565394,169.62,169.56,13.91565394]
[1730399337068,13.91565394,169.64,169.58,13.91565394]
[1730399337267,13.91565394,169.65,169.59,13.91565394]
[1730399337456,13.91565394,169.65,169.58,0.12549]
[1730399337457,13.91565394,169.65,169.6,13.91565394]
[1730399337661,13.91565394,169.65,169.58,0.12549]
[1730399337662,13.91565394,169.65,169.59,13.91565394]
[1730399338353,13.91565394,169.64,169.6,20.6367]
[1730399339371,13.91565394,169.64,169.6,14.7405]
[1730399340449,13.91565394,169.65,169.6,14.7405]
[1730399340652,13.91565394,169.64,169.6,14.7405]
[1730399341358,13.91565394,169.64,169.6,20.6367]
[1730399343774,13.91565394,169.63,169.6,14.7405]
[1730399344274,33.91565394,169.65,169.6,14.7405]
[1730399344653,13.91565394,169.64,169.6,14.7405]
[1730399345789,13.91565394,169.65,169.6,20.6367]
[1730399345986,13.91565394,169.61,169.56,14.744]
[1730399346154,13.91565394,169.6,169.56,14.744]
[1730399347252,13.91565394,169.61,169.56,14.744]
[1730399347460,13.91565394,169.6,169.56,14.744]
[1730399348679,13.91565394,169.59,169.56,14.744]
[1730399351559,13.91565394,169.61,169.56,14.744]
[1730399352270,13.91565394,169.62,169.56,28.65965394]
[1730399352678,13.91565394,169.62,169.56,34.55725394]